Cogmind - Beta 17.1 @@@ ROGUE MODE // 2026.08.22 @ 03:09:11 Player: kite Result: Destroyed by YI-UF0 with YI-UF0's Doublenader Performance ------------- Evolutions (0) 0 Regions Visited (4) 800 Robots Destroyed (42) 210 Value Destroyed (829) 829 Prototype IDs (24) 480 Alien Tech Used (0) 0 Bonus (300) 300 TOTAL SCORE: 2619 Bonus ------- Aligned with FarCom 300 Cogmind --------- Core Integrity 0/250 Matter 280/300 Energy 233/240 System Corruption 1% Temperature Cool (0) Movement Treading (312) Ox2 Location -9/Mines Parts ------- > --- POWER (1) -------- Nuclear Core > --- PROPULSION (2) --- Light Treads Advanced Treads > --- UTILITY (2) ------ Improved Heat Sink Huge Storage Unit > --- WEAPON (2) ------- Spread Laser > --- INVENTORY (25) --- Ion Engine Aluminum Leg Aluminum Leg Potential Leg Potential Leg Improved Heat Sink High-capacity Storage Unit Large Battery (200) Structural Scanner ECM Suite Medium Armor Plating Medium Armor Plating Medium Armor Plating Improved Light Armor Plating Splice Drone Bay (6/6) Spread Laser Grenade Launcher Rocket Launcher Datajack Peak State ------------ > --- POWER ------------ Nuclear Core > --- PROPULSION ------- Wheel Wheel > --- UTILITY ---------- High-capacity Storage Unit Splice Drone Bay > --- WEAPON ----------- Spread Laser Spread Laser > --- INVENTORY -------- Light Ion Engine Advanced Treads Wheel Wheel Wheel Improved Heat Sink High-capacity Storage Unit Huge Storage Unit Large Battery Structural Scanner ECM Suite Medium Armor Plating Medium Armor Plating Medium Armor Plating Improved Light Armor Plating Medium Laser Spread Laser Spread Laser Grenade Launcher Rocket Launcher [Rating: 20] Favorites ----------- Power Light Ion Engine Engine Light Ion Engine Power Core Nuclear Core Propulsion Wheel Treads Light Treads Wheel Wheel Utility High-capacity Storage Unit Device Improved Heat Sink Storage High-capacity Storage Unit Protection Light Armor Plating Weapon Spread Laser Energy Gun Spread Laser Ballistic Gun Assault Rifle Launcher Grenade Launcher Build | -11 -10 -10 -10 -9 ------- Run | Yrd Mat Min Exi Min Slots Evolved . | . . . . . Power . | . . . . . Propulsion . | . . . . . Utility . | . . . . . Weapon . | . . . . . Parts Attached 31 | 6 13 7 2 3 Power 4 | 1 2 1 . . Engine 3 | 1 2 . . . Core 1 | . . 1 . . Reactor . | . . . . . Propulsion 8 | 2 3 . . 3 Treads 4 | 2 . . . 2 Leg . | . . . . . Wheel 4 | . 3 . . 1 Hover . | . . . . . Flight . | . . . . . Utility 12 | 1 6 3 2 . Device 5 | . 2 3 . . Storage 4 | 1 1 . 2 . Processor . | . . . . . Hackware . | . . . . . Protection 3 | . 3 . . . Artifact . | . . . . . Weapon 7 | 2 2 3 . . Energy Gun 3 | . 2 1 . . Energy Cannon . | . . . . . Ballistic Gun 2 | 2 . . . . Ballistic Cannon . | . . . . . Launcher 2 | . . 2 . . Special Weapon . | . . . . . Impact Weapon . | . . . . . Slashing Weapon . | . . . . . Piercing Weapon . | . . . . . Special Melee Weapon . | . . . . . Unidentified Prototypes 1 | . . 1 . . Parts Lost 12 | . 7 . . 5 Power 1 | . 1 . . . Propulsion 5 | . 2 . . 3 Utility 2 | . 2 . . . Weapon 4 | . 2 . . 2 Highest Loss Streak 6 | . 6 . . 4 To Critical Strikes . | . . . . . Average Backups 17 | 2 13 20 19 21 Power . | . . 1 . . Propulsion 3 | 1 3 3 3 5 Utility 8 | . 5 10 10 10 Weapon 4 | . 3 4 5 4 Tool/Special . | . . . . . Unused Backups 25 | . 3 4 4 14 Power 3 | . 1 . 1 1 Propulsion 10 | . 2 3 1 4 Utility 9 | . . 1 1 7 Weapon 2 | . . . 1 1 Tool/Special 1 | . . . . 1 Average Slot Usage (%) 97 | . 96 99 87 98 Engine 7 | . 13 5 . . Core 6 | . . 8 14 14 Treads 5 | . 13 . . . Wheel 21 | . 13 28 28 27 Device 11 | . 8 13 14 14 Storage 14 | . 14 14 14 14 Protection 2 | . 5 . . . Energy Gun 21 | . 15 27 16 27 Ballistic Gun 4 | . 11 . . . Peak Build Rating 20 | 6 11 20 16 20 Average Rating 12 | 4 9 13 15 17 On Entrance 9 | . 6 11 16 16 Avg Prop Armor Cover (%) 14 | . 14 . . . Naked Turns . | . . . . . Heaviest Build 94 | 12 54 61 91 94 Greatest Support 42 | 40 40 20 20 42 Greatest Overweight (x) 9 | . 3 3 4 9 Average Overweight (x) 1 | . 1 2 2 4 Largest Inventory Capacity 25 | 8 20 20 25 25 Average Capacity 20 | 6 19 20 20 25 Most Carried 22 | 4 20 20 20 22 Average Carried 17 | 2 13 19 19 21 Final Capacity 25 | 8 20 20 25 25 Final Carried 20 | 4 20 20 19 19 Class Distribution -------------------- 100% | Mutant Dominant Class ---------------- Mutant | -10/Materials Mutant | -10/Mines Mutant | -10/Exiles Mutant | -9/Mines Resources | -11 -10 -10 -10 -9 ----------- Run | Yrd Mat Min Exi Min Matter Collected 817 | 129 494 148 16 30 Remotely . | . . . . . Salvage Created 967 | . 769 85 . 113 Parts 83 | . 65 8 . 10 Haulers Intercepted 2 | . 2 . . . Recyclers Shooed 4 | . 4 . . . Parts Field Recycled . | . . . . . Retrieved Matter . | . . . . . Parts Self-Destructed . | . . . . . Prevented . | . . . . . Parts Restored . | . . . . . Kills | -11 -10 -10 -10 -9 ------- Run | Yrd Mat Min Exi Min Combat Hostiles Destroyed 27 | . 19 2 . 6 Guns 27 | . 19 2 . 6 Classes Destroyed 7 | . 7 . . . Worker 5 | . 4 . . 1 Builder 5 | . 5 . . . Tunneler 2 | . 1 1 . . Hauler 2 | . 2 . . . Recycler 1 | . 1 . . . Swarmer 8 | . 5 . . 3 Grunt 19 | . 14 2 . 3 Best Kill Streak 4 | . 4 1 . 2 Combat Bots Only 4 | . 4 1 . 2 Max Kills in Single Turn 2 | . 2 1 . 1 Gunslinging 1 | . 1 . . . Exploded . | . . . . . Melee . | . . . . . Uniques/NPCs Destroyed . | . . . . . Combat | -11 -10 -10 -10 -9 -------- Run | Yrd Mat Min Exi Min Hostile Shots Fired 152 | . 118 4 . 30 Missed 36 | . 28 1 . 7 Hits 116 | . 90 3 . 23 Projectile 116 | . 90 3 . 23 AOE 13 | . . 1 . 12 Critical Strikes 1 | . 1 . . . Damage Taken 1573 | . 1027 83 . 463 Core 281 | . 99 15 . 167 Absorbed by Shields . | . . . . . Core Remaining (%) 100 | 100 . . . . Volleys Fired 117 | . 93 6 . 18 Largest 2 | . 2 2 . 2 Hottest 130 | . 130 130 . 130 Shots Fired 220 | . 174 13 . 33 Gun 220 | . 174 13 . 33 Cannon . | . . . . . Launcher . | . . . . . Special . | . . . . . Kinetic 81 | . 81 . . . Thermal 139 | . 93 13 . 33 Explosive . | . . . . . Electromagnetic . | . . . . . Robot Hit Streak 9 | . 7 8 . 9 Robot Miss Streak 9 | . 9 6 . 5 Penetration Max . | . . . . . Secondary Targets 4 | . 4 . . . Max Gunslinging Chain 1 | . 1 . . . Shots Hit Robots 172 | . 128 13 . 31 Core Hits 154 | . 107 17 . 30 Critical Kills . | . . . . . Critical Parts Destroyed 1 | . 1 . . . Critical Strikes 1 | . 1 . . . Destroy 1 | . 1 . . . Melee Attacks . | . . . . . Impact . | . . . . . Slashing . | . . . . . Piercing . | . . . . . Sneak Attacks . | . . . . . Combat Hostiles . | . . . . . Follow-up Attacks . | . . . . . Damage Inflicted 2059 | . 1538 157 . 364 Guns 2059 | . 1538 157 . 364 Cannons . | . . . . . Explosions . | . . . . . Melee . | . . . . . Ramming . | . . . . . Kinetic 614 | . 614 . . . Thermal 1445 | . 924 157 . 364 Explosive . | . . . . . Electromagnetic . | . . . . . Impact . | . . . . . Slashing . | . . . . . Piercing . | . . . . . Highest Corruption 1 | . 1 1 1 1 Average Corruption 1 | . 1 1 1 1 Corruption Purged . | . . . . . Corruption Blocked . | . . . . . Effects 21 | . 10 9 1 1 Message Errors 4 | . 1 3 . . Matter Fused 7 | . 3 3 1 . Heat Flow Errors 4 | . 3 . . 1 Energy Discharges 1 | . 1 . . . Parts Fused 1 | . 1 . . . Data Loss (major) 2 | . . 2 . . Misfires 1 | . . 1 . . Weapon Failures 1 | . 1 . . . Overload Shots . | . . . . . Overflow Damage . | . . . . . Projectiles . | . . . . . Explosions . | . . . . . Melee . | . . . . . Knockbacks . | . . . . . Impact . | . . . . . Kinetic . | . . . . . Secondary . | . . . . . Self-Inflicted Damage . | . . . . . Shots . | . . . . . Rammed . | . . . . . Targets Rammed . | . . . . . Kicked . | . . . . . Crushed . | . . . . . Highest Temperature 384 | . 384 75 . 224 Average Temperature 103 | . 125 31 . 45 Received Heat Transfer 618 | . 540 18 . 60 Effects 4 | . 4 . . . Shutdowns 2 | . 2 . . . Energy Bleed 1 | . 1 . . . Damage (minor) 1 | . 1 . . . Siege Activations . | . . . . . Martial Activations . | . . . . . Shielding Activations . | . . . . . Robots Disrupted . | . . . . . Combat Hostiles . | . . . . . Robots Corrupted . | . . . . . Combat Hostiles . | . . . . . Parts Fried . | . . . . . Impact Corruptions . | . . . . . Robots Melted . | . . . . . Combat Hostiles . | . . . . . Parts Melted . | . . . . . Heat Transferred 1815 | . 1160 195 . 460 Parts Sabotaged . | . . . . . Parts Stolen . | . . . . . Parts Stripped . | . . . . . Power Chain Reactions . | . . . . . Alert | -11 -10 -10 -10 -9 ------- Run | Yrd Mat Min Exi Min Maximum Alert Level . | . . . . . Low Security (%) 100 | 100 100 100 . 100 Level 1 . | . . . . . Level 2 . | . . . . . Level 3 . | . . . . . Level 4 . | . . . . . Level 5 . | . . . . . High Security . | . . . . . Max Security . | . . . . . Peak Influence 140 | . 140 48 . 62 Initial 48 | . . 48 . . Average 37 | . 74 4 . 19 Influence Increases 826 | . 604 55 . 167 Destroy 0b10 Robot/C 540 | . 380 40 . 120 Destroy 0b10 Robot/NC 75 | . 65 5 . 5 Destroy Leader 114 | . 84 10 . 20 Allied During Kill 7 | . . . . 7 Successful Hack 14 | . 14 . . . Select Force Hacks 30 | . 30 . . . Disable Machine 15 | . 15 . . . Destroy Structure 1 | . 1 . . . Lose Combat Pursuer 30 | . 15 . . 15 Influence Decreases 826 | . 478 181 . 167 Entered New Map 78 | . . 78 . . Time Decay 668 | . 408 103 . 157 Lost Part 80 | . 70 . . 10 Squads Dispatched 6 | . 4 1 . 1 Investigation 4 | . 3 1 . . Extermination . | . . . . . Reinforcement 2 | . 1 . . 1 Assault . | . . . . . Garrison . | . . . . . Intercept . | . . . . . Searches Triggered . | . . . . . Construction Impeded 1 | . . . . 1 Haulers Reinforced . | . . . . . Active Scanning Responses . | . . . . . Cargo Convoy Interrupts . | . . . . . Stealth | -11 -10 -10 -10 -9 --------- Run | Yrd Mat Min Exi Min Distress Signals 1 | . 1 . . . Communications Jammed . | . . . . . Distress Signals . | . . . . . Times Spotted 45 | . 33 3 . 9 Peak Tracking Total 9 | . 9 2 . 3 Tactical Retreats 2 | . 1 . . 1 Traps | -11 -10 -10 -10 -9 ------- Run | Yrd Mat Min Exi Min Traps Triggered 2 | . 2 . . . Indirectly . | . . . . . Trap Hack Attempts . | . . . . . Triggered . | . . . . . Disarmed . | . . . . . Reprogrammed . | . . . . . Reused . | . . . . . Traps Extracted . | . . . . . Installed . | . . . . . Triggered . | . . . . . Machines | -11 -10 -10 -10 -9 ---------- Run | Yrd Mat Min Exi Min Machines Disabled 1 | . 1 . . . Max in Single Turn 1 | . 1 . . . Machines Repaired . | . . . . . Machines Dismantled . | . . . . . Machines Sabotaged . | . . . . . Overloaded Fab Kills . | . . . . . Hacking | -11 -10 -10 -10 -9 --------- Run | Yrd Mat Min Exi Min Machines Accessed 9 | . 5 2 2 . Terminals 3 | . 3 . . . Fabricators . | . . . . . Repair Stations . | . . . . . Recycling Units 2 | . 2 . . . Scanalyzers . | . . . . . Garrison Access . | . . . . . Total Hacks 18 | . 11 2 5 . Successful 10 | . 3 2 5 . Failed 8 | . 8 . . . Catastrophic 5 | . 5 . . . Database Lockouts . | . . . . . Manual 9 | . 8 . 1 . Terminals 7 | . 7 . . . Fabricators . | . . . . . Repair Stations . | . . . . . Recycling Units 4 | . 4 . . . Scanalyzers . | . . . . . Garrison Access . | . . . . . Terminal Hacks 9 | . 2 2 5 . Record 4 | . . . 4 . Part Schematic 2 | . 2 . . . Open Door 2 | . . 2 . . Proto ID Catalog 1 | . . . 1 . Fabricator Hacks . | . . . . . Repair Station Hacks . | . . . . . Recycling Unit Hacks . | . . . . . Scanalyzer . | . . . . . Garrison Access Hacks . | . . . . . Unauthorized Hacks 1 | . 1 . . . Terminals . | . . . . . Fabricators . | . . . . . Repair Stations . | . . . . . Recycling Units 1 | . 1 . . . Tunnel 1 | . 1 . . . Scanalyzers . | . . . . . Garrison Access . | . . . . . Data Cores Recovered . | . . . . . Used . | . . . . . Hacking Detections 4 | . 4 . . . Full Trace Events 2 | . 2 . . . Feedback Events 1 | . 1 . . . Corruption 1 | . 1 . . . Feedback Blocked . | . . . . . Robot Schematics Acquired . | . . . . . Robots Built . | . . . . . Authchips . | . . . . . Time . | . . . . . Total Robot Build Rating . | . . . . . Part Schematics Acquired 2 | . 2 . . . Parts Built . | . . . . . Authchips . | . . . . . Time . | . . . . . Total Part Build Rating . | . . . . . Part Studies Acquired . | . . . . . Parts Repaired . | . . . . . Time . | . . . . . Parts Recycled . | . . . . . Recycled Matter . | . . . . . Retrieved Matter . | . . . . . Retrieved Components . | . . . . . Parts Scanalyzed . | . . . . . Part Schematics Acquired . | . . . . . Parts Damaged . | . . . . . Bothacking | -11 -10 -10 -10 -9 ------------ Run | Yrd Mat Min Exi Min Used RIF Installer . | . . . . . Robots Hacked . | . . . . . Non-combat . | . . . . . Combat . | . . . . . Robot Hacks Applied . | . . . . . Relay Couplers Released . | . . . . . Fabnet Peak Effective % . | . . . . . Robots Rewired . | . . . . . Allies Hacked . | . . . . . Hacks Repelled . | . . . . . Allies | -11 -10 -10 -10 -9 -------- Run | Yrd Mat Min Exi Min Total Allies 2 | . . 1 . 1 Largest Group 1 | . . 1 . 1 Highest-Rated Group 31 | . . 31 . 31 Highest-Rated Ally 31 | . . 31 . 31 Total Orders 1 | . . 1 . . RETURN 1 | . . 1 . . Ally Attacks 6 | . . . . 6 Total Damage 42 | . . . . 42 Kills . | . . . . . Allies Corrupted . | . . . . . Allies Melted . | . . . . . Intel | -11 -10 -10 -10 -9 ------- Run | Yrd Mat Min Exi Min Active Infowar (turns) . | . . . . . Robot Analysis Total . | . . . . . Derelict Logs Recovered 1 | . . . . 1 Drone Launches 1 | . . 1 . . Drone Recoveries 1 | . . 1 . . Exploration | -11 -10 -10 -10 -9 ------------- Run | Yrd Mat Min Exi Min Turns Passed 3785 | 68 1536 1336 341 504 Spaces Moved 2263 | 36 767 878 293 289 Core 1 | 1 . . . . Treads 226 | 35 190 . . 1 Legs . | . . . . . Wheels 2036 | . 577 878 293 288 Hover . | . . . . . Flight . | . . . . . Fastest Speed 50 | 50 105 110 110 140 Average Speed 126 | 156 143 110 112 141 Slowest Speed 320 | 160 320 125 140 312 Overloaded Moves . | . . . . . Propulsion Burnouts . | . . . . . Robots Hopped . | . . . . . Potential Cave-ins . | . . . . . Cave-ins Triggered . | . . . . . Exploration Rate (%) 63 | 4 97 93 60 63 Regions Visited 4 Branch Regions 3 Pre-discovered Areas 3 | . 1 . 1 1 Known Exits Taken . | . . . . . Unknown Exits Taken 4 | 1 1 1 1 . Scrap Searched 3 | . . 1 . 2 Spaces Dug . | . . . . . Terrain Destroyed . | . . . . . Melee . | . . . . . Projectile . | . . . . . AOE . | . . . . . Terrain Rammed . | . . . . . Walls Destroyed . | . . . . . Machines Disabled . | . . . . . Actions | -11 -10 -10 -10 -9 --------- Run | Yrd Mat Min Exi Min Total 2966 | 45 1024 1238 307 352 Wait 484 | . 120 329 . 35 Move 2259 | 35 766 877 292 289 Hop . | . . . . . Pick Up 43 | 4 25 5 4 5 Fast Attach 11 | 6 3 2 . . Attach 12 | . 7 . . 5 Detach 1 | . . . 1 . Swap 15 | . 4 9 2 . Drop 24 | . 6 10 8 . Fire 117 | . 93 6 . 18 Melee . | . . . . . Ram . | . . . . . Kick . | . . . . . Crush . | . . . . . Escape Stasis . | . . . . . Rewire . | . . . . . Trap . | . . . . . Miscellaneous . | . . . . . Route ------- -11/Scrapyard -10/Materials (discovered 5 exits: [*Mat x3] / *Min x2) -10/Mines (discovered 3 exits: [*Mat] / *Exi / [*Sub]) -10/Exiles (discovered 2 exits: [*Min x2]) -9/Mines (discovered 1 exit: [*Mat]) History --------- Turn | Location | Event 46 | -11/Scrapyard | Discovered new exit (range 15) 69 | -11/Scrapyard | Entered Materials 316 | -10/Materials | Build established: Mutant 736 | -10/Materials | Lost 6 parts (1p1n2u2w) 874 | -10/Materials | Discovered new exit (range 12) 994 | -10/Materials | Discovered new exit (range 8) 1298 | -10/Materials | Discovered new exit (range 15) 1308 | -10/Materials | Discovered new exit (range 16) 1489 | -10/Materials | Discovered new exit (range 11) 1605 | -10/Materials | Entered Mines 1612 | -10/Mines | Received a Rocket Launcher from a helpful Derelict 1629 | -10/Mines | Met a Derelict bent on vengeance 1676 | -10/Mines | Assembled infested the area 1681 | -10/Mines | Assisted by a Guerilla fighting off Assembled 2024 | -10/Mines | Met a Derelict shopkeep closing up shop 2333 | -10/Mines | Found the Drone Emporium 2338 | -10/Mines | Found Prototype Device 2338 | -10/Mines | Identified Splice Drone Bay 2488 | -10/Mines | Received a Mining Laser from a helpful Derelict 2526 | -10/Mines | Deemed a non-threat by the Exiles lab entrance 2546 | -10/Mines | Discovered new exit (range 5) 2653 | -10/Mines | Discovered new exit (range 6) 2720 | -10/Mines | Discovered new exit (range 6) 2941 | -10/Mines | Entered Exiles 2956 | -10/Exiles | Discovered new exit (range 15) 2969 | -10/Exiles | Met 8R-AWN 2987 | -10/Exiles | Met EX-HEX 3023 | -10/Exiles | Met EX-BIN 3035 | -10/Exiles | Aligned with FarCom system 3036 | -10/Exiles | Given EX-Vault access code 3062 | -10/Exiles | Opened EX-Vault 3068 | -10/Exiles | Found Potential Leg 3071 | -10/Exiles | Found Potential Leg 3099 | -10/Exiles | Warned to stay clear of 0b10 Research branches 3134 | -10/Exiles | Met EX-DEC 3139 | -10/Exiles | Learned location of Zion (-6) 3268 | -10/Exiles | Discovered new exit (range 10) 3282 | -10/Exiles | Left Exiles lab with Potential Leg 3282 | -10/Exiles | Entered Mines 3284 | -9/Mines | Core integrity fell below 50% 3293 | -9/Mines | Escorted by a lone wolf Derelict 3313 | -9/Mines | Learned location of Storage (-8) 3637 | -9/Mines | Discovered new exit (range 12) 3780 | -9/Mines | Core integrity fell below 20% 3786 | -9/Mines | Destroyed by YI-UF0 with YI-UF0's Doublenader Last Messages --------------- 03613_ Found Sensor Array. 03613_ Found 68 Matter. 03613_ T-07 Excavator is excavating. 03637_ EXIT=FOUND 03658_ Searching scrap... 03658_ Found Imp. Targeting Computer. 03658_ Found Heat Sink. 03658_ Found Autogun. 03658_ Found 56 Matter. 03669_ Acquired derelict log, extracted data. Data stored: Storage entrances (x1). 03714_ U-05 Engineer destroyed. 03724_ K-01 Serf collects debris. 03731_ K-01 Serf destroyed. 03733_ 42-Z64(g): "Mission, incomplete...*fzzt*" 03733_ 42-Z64(g) destroyed. 03775_ Wheel destroyed. 03781_ Spread Laser destroyed. 03783_ YI-UF0 mumbles something. 03786_ Spread Laser destroyed. Map ----- +----------------------------------------------------+ | | | | | | | | | | | | | | | | | | | ?????????????????????????????????????????????????? | | ?????????????????????????????????????????????????? | | ?????????????????????????????????????????????????? | | ?????????????????????????????????????????????????? | | ?????????????????????????????????????????????????? | | ####????######???????????????????????????????????? | | ##???# #???????????????????????????????????? | | #???# ?????????????????????##????????????? | | #???# #??????#######??????? ##???????????? | | [###### ???????# # ######? ???????????? | | !%! #? ?????#?# # #???????????? | | # ! ! #?# #????## # # ??????????? | | # !!! ### #????# ?????????? | | # !!!! ## #????# #?????????? | | # !!!! ## ##???# g% ????????? | | # ## ##?## ?????????? | | ######## ### @ # #??????????????? | | ###????# # #??????????????? | | # ###### #????????????????? | | k ###????????????????? | | ! # #??????????????????? | | ######### % ## ##??????????????????? | | ##???????# ## # #???????????????????? | | #????????## #### #??????YY???????????? | | #?????????## #?## #??????????????????? | | ???????????# #??###### #??????????????????? | | ???????????## #????????# ##??????????????????? | | ????????????## ####??????##???????????????????? | | ?????????????## #???????????????????????????? | | ??????????????##### #???????????????????????????? | | ??????????????????# #???????????????????????????? | | ??????????????????# #???????????????????????????? | | ?????????????????## #???????????????????????????? | | ?????????###????## #???????????????????????????? | | ????????## ##??# ##??????????????###?????????? | | ????????# ##?# #########??????# ?????????? | | ???###??# #?## [%=%#??????# #?????????? | | ??## #??# #### ###### #??????# ####??????? | | ??# #?# * ##????# #??????# ? #??????? | | ??# ## % ##?????# #???#### #? #??????? | | ???# *%## ##??????# #??## # ## #??????? | +----------------------------------------------------+ Best States ------------- Heat Dissipation 39 Energy Generation 14 Energy Capacity 240 Matter Stores 300 Matter Capacity 300 Sight Range 16 Terrain Scan Density 10 Armor Coverage 225 Evasion (%) 40 Recoil Reduction 2 Item Schematics ----------------- Huge Storage Unit | -10/Materials | Hacked Cargo Storage Unit | -10/Materials | Hacked Robot Schematics ------------------ None Fabricated ------------ Nothing Repaired ---------- Nothing Studied --------- None Alien Tech Used ----------------- None Achievements -------------- None Challenges ------------ None Game ------ Seed AnalysisTerrorFalx Manual? 0 Play Time 00:18:03 Cumulative 563.9 hours Start 2026.08.22 @ 02:50:05 End 2026.08.22 @ 03:09:11 Sessions 1 Manual Loads 0 Difficulty Rogue Special Mode None Game No. 480 Rogue 480 Adventurer 0 Explorer 0 Win Type - Total 16 Types 9/0/3/1/0/0/0/1/0/2 Lore% 68 Gallery% 71 Achievement% 68 Wizard Run 0 Options --------- Layout 1 ASCII 0 Keyboard 0 Movement Mouse Keybinds 0 Fullscreen 2 Font 24/Cog Map View 50x35 Zoom Use 45% Tactical HUD 1 Map Filters NONE Filters NONE Steam 1 RUN: 9e8dadd6-64b6-410f-8d5c-83fbe152931b